bitfinex/quotes_BTCUSD_20240712
["timestamp","ask_amount","ask_price","bid_price","bid_amount"]
[1720797622472,1.14197958,58006.0,58005.0,0.012]
[1720797624525,1.11618355,58006.0,58005.0,0.012]
[1720797624748,1.01143375,58006.0,58005.0,0.012]
[1720797625222,0.863977,58006.0,58005.0,0.012]
[1720797625396,1.11408965,58006.0,58005.0,0.012]
[1720797625611,1.11408965,58006.0,58005.0,0.02014749]
[1720797625861,1.01101439,58006.0,58005.0,0.02014749]
[1720797626107,0.14903739,58006.0,58005.0,0.1534]
[1720797626363,0.14903739,58006.0,58005.0,0.33395063]
[1720797626534,0.14903739,58006.0,58005.0,1.02354463]
[1720797626684,0.14903739,58006.0,58005.0,1.14354463]
[1720797627152,0.1486093,58006.0,58005.0,1.14354463]
[1720797628083,0.002,58006.0,58005.0,1.14354463]
[1720797628267,0.05636514,58006.0,58005.0,1.02354463]
[1720797628473,0.05636514,58006.0,58005.0,1.14354463]
[1720797628678,0.05636514,58006.0,58005.0,1.02354463]
[1720797628815,0.05636514,58006.0,58005.0,1.14354463]
[1720797629019,0.14905302,58006.0,58005.0,1.14354463]
[1720797630323,0.14905302,58006.0,58005.0,1.48834163]
[1720797631349,0.14897853,58006.0,58005.0,1.48834163]
[1720797632799,0.14980853,58006.0,58005.0,1.48834163]
[1720797633222,0.14980853,58006.0,58005.0,1.36834163]
[1720797634759,0.14860045,58006.0,58005.0,1.36834163]
[1720797635200,0.0565451,58006.0,58005.0,1.36834163]
[1720797635400,0.1486071,58006.0,58005.0,1.36834163]
[1720797635632,0.1486071,58006.0,58005.0,1.48834163]
[1720797637103,0.14898416,58006.0,58005.0,1.48834163]
[1720797637485,0.14898416,58006.0,58005.0,1.36834163]
[1720797638169,0.14920146,58006.0,58005.0,1.36834163]
[1720797638782,0.14920146,58006.0,58005.0,1.48834163]
[1720797639158,0.056851,58006.0,58005.0,1.48834163]
[1720797640683,0.00283,58006.0,58005.0,1.48834163]
[1720797640878,0.14948437,58006.0,58005.0,1.48834163]
[1720797641421,0.05671453,58006.0,58005.0,1.48834163]
[1720797641672,0.14895652,58006.0,58005.0,1.48834163]
[1720797642630,0.05671453,58006.0,58005.0,1.48834163]
[1720797643097,0.09519928,58006.0,58005.0,1.48834163]
[1720797643315,0.14908381,58006.0,58005.0,1.48834163]
[1720797644744,0.14985377,58006.0,58005.0,1.48834163]
[1720797645161,0.00283,58006.0,58005.0,1.48834163]
[1720797645357,0.09551055,58006.0,58005.0,1.48834163]
[1720797645557,0.14985475,58006.0,58005.0,1.48834163]
[1720797646527,0.14985475,58006.0,58005.0,1.36834163]
[1720797647086,0.14985475,58006.0,58005.0,1.48834163]
[1720797647415,0.14967318,58006.0,58005.0,1.48834163]
[1720797647619,0.14967318,58006.0,58005.0,2.13313863]
[1720797647620,0.05707786,58006.0,58005.0,2.13313863]
[1720797647824,0.05707786,58006.0,58005.0,2.84633563]
[1720797648036,0.05707786,58006.0,58005.0,2.74633563]
[1720797648037,0.05660656,58006.0,58005.0,2.74633563]
[1720797648239,0.05660656,58006.0,58005.0,3.40715263]
[1720797648758,0.05560656,58006.0,58005.0,3.40215263]
[1720797648959,0.05460656,58006.0,58005.0,3.39515263]
[1720797649540,0.05460656,58006.0,58005.0,3.40615263]
[1720797649918,0.05460656,58006.0,58005.0,3.39515263]
[1720797650126,0.05560656,58006.0,58005.0,3.42315263]
[1720797650476,0.05460656,58006.0,58005.0,3.40915263]
[1720797650693,0.05560656,58006.0,58005.0,3.42315263]
[1720797651131,0.00183,58006.0,58005.0,3.42315263]
[1720797651899,0.00107322,58024.0,58023.0,1.464015]
[1720797652125,0.14833268,58024.0,58023.0,1.464015]
[1720797652344,0.14833268,58024.0,58023.0,1.47385286]
[1720797652554,0.14725946,58024.0,58023.0,1.47385286]
[1720797652763,0.14766523,58025.0,58024.0,1.326394]
[1720797652924,0.05159314,58026.0,58025.0,0.517018]
[1720797653174,0.05466906,58026.0,58024.0,0.00983559]
[1720797653332,0.28437052,58025.0,58024.0,0.172341]
[1720797653554,0.28437052,58025.0,58024.0,0.171341]
[1720797653759,0.23278298,58025.0,58024.0,0.171341]
[1720797653967,0.23278298,58025.0,58010.0,0.2]
[1720797653968,0.44665682,58025.0,58014.0,0.0622]
[1720797654174,0.10318776,58020.0,58018.0,0.172359]
[1720797654348,0.172351,58021.0,58008.0,0.00199031]
[1720797654349,0.08511435,58018.0,58008.0,0.00199031]
[1720797654550,0.07739798,58014.0,58003.0,0.5286]
[1720797654751,0.08511435,58008.0,58001.0,0.001013]
[1720797654960,0.22400705,58003.0,58001.0,0.001013]
[1720797655160,0.1988009,58002.0,58001.0,0.001013]
[1720797655409,1.2412502,58002.0,58001.0,0.001013]
[1720797656091,1.7060652,58002.0,58001.0,0.001013]
[1720797656286,1.86083437,58002.0,58001.0,0.001013]
[1720797656450,1.7060652,58002.0,58001.0,0.001013]
[1720797656649,1.70752287,58002.0,58001.0,0.001013]
[1720797657282,1.50240852,58002.0,58001.0,0.002013]
[1720797657526,1.65718862,58002.0,58001.0,0.002013]
[1720797657734,0.29555652,58002.0,58001.0,0.004013]
[1720797657935,0.14865652,58002.0,58001.0,0.004013]
[1720797658577,0.66587852,58002.0,58001.0,0.002013]
[1720797658916,1.01069352,58002.0,58001.0,0.002013]
[1720797659328,1.01069352,58002.0,58001.0,0.001013]
[1720797659669,1.01269352,58002.0,58001.0,0.001013]
[1720797659870,1.01469352,58002.0,58001.0,0.001013]
[1720797660073,1.01269352,58002.0,58001.0,0.001013]
[1720797660276,0.32106352,58002.0,58001.0,0.001013]
[1720797660476,0.32106352,58002.0,58001.0,0.007013]
[1720797660677,0.32106352,58002.0,58001.0,0.01688691]
[1720797660678,0.41411216,58002.0,58001.0,0.01688691]
[1720797660913,0.32062921,58002.0,58001.0,0.007013]
[1720797661122,0.14822221,58002.0,58001.0,0.35870791]
[1720797661283,0.14822221,58002.0,58001.0,1.061165]
[1720797661492,0.25140616,58002.0,58001.0,1.47985991]
[1720797661711,0.10654424,58002.0,58001.0,1.48185991]
[1720797661910,0.10654424,58002.0,58001.0,2.02668091]
[1720797661911,0.05494948,58002.0,58001.0,2.02668091]
[1720797662087,0.05494948,58002.0,58001.0,1.82668091]
[1720797662324,0.05494948,58002.0,58001.0,2.02668091]
[1720797662704,0.05494948,58002.0,58001.0,2.67542191]
[1720797662905,0.05159476,58014.0,58013.0,0.981875]
[1720797663103,0.3915241,58024.0,58013.0,0.981875]
[1720797663104,0.00107322,58023.0,58014.0,0.12]
[1720797663345,0.05160461,58016.0,58015.0,0.12344695]
[1720797663502,0.07740691,58018.0,58016.0,0.344732]
[1720797663738,0.22555856,58017.0,58016.0,0.517098]
[1720797664137,0.148151,58017.0,58016.0,0.517098]
[1720797664337,0.148151,58017.0,58016.0,0.87169359]
[1720797664338,0.22555909,58017.0,58016.0,0.87169359]
[1720797664767,0.22555909,58017.0,58016.0,0.88569359]
[1720797664986,0.22555909,58017.0,58016.0,0.87169359]
[1720797665434,0.149151,58017.0,58016.0,1.35042559]
[1720797665636,0.0560857,58017.0,58016.0,1.35042559]
[1720797666052,0.0560857,58017.0,58016.0,1.69515759]
[1720797666474,0.001,58017.0,58016.0,1.69515759]
[1720797666894,0.001,58017.0,58016.0,1.90915759]
[1720797667097,0.05647667,58017.0,58016.0,1.90915759]
[1720797667283,0.00107322,58025.0,58024.0,0.98171]
[1720797667488,0.05655138,58025.0,58024.0,0.98171]
[1720797667688,0.05547816,58025.0,58024.0,0.86171]
[1720797667852,0.05547816,58025.0,58024.0,0.87156127]
[1720797668055,0.1070647,58025.0,58024.0,0.00985127]
[1720797668461,0.1070647,58025.0,58020.0,0.344703]
[1720797668462,0.2270788,58025.0,58020.0,0.344703]
[1720797668661,0.07736236,58026.0,58024.0,0.186342]
[1720797668863,0.22639695,58025.0,58024.0,0.200342]
[1720797669092,0.22639695,58025.0,58024.0,0.186342]
[1720797669305,0.22532373,58025.0,58024.0,0.87571]
[1720797669511,0.10639156,58025.0,58024.0,0.87571]
[1720797669752,0.00107322,58031.0,58024.0,0.87571]
[1720797669753,0.30231289,58031.0,58027.0,0.17233]
[1720797669960,0.10313494,58029.0,58027.0,0.17233]
[1720797670162,0.14816217,58030.0,58024.0,0.172341]
[1720797670163,0.25237033,58028.0,58024.0,0.172341]
[1720797670375,0.10314504,58026.0,58024.0,0.014]
[1720797670549,0.10314504,58026.0,58024.0,0.028]
[1720797670550,0.74360923,58025.0,58024.0,0.028]
[1720797670874,0.39893038,58025.0,58024.0,0.014]
[1720797671002,0.39893038,58025.0,58022.0,0.172347]
[1720797671003,0.172349,58022.0,58013.0,0.344748]
[1720797671209,0.05157554,58018.0,58017.0,0.517089]
[1720797671385,0.10649704,58018.0,58017.0,0.517089]
[1720797672802,0.00107322,58021.0,58020.0,0.517062]
[1720797673008,0.10315695,58022.0,58021.0,0.861755]
[1720797673213,0.07836579,58022.0,58021.0,0.861755]
[1720797673408,0.14910492,58022.0,58021.0,0.861755]
[1720797673831,0.14810492,58022.0,58021.0,0.861755]
[1720797674032,0.14810492,58022.0,58021.0,1.206457]
[1720797674261,0.05589017,58022.0,58021.0,1.220457]
[1720797674477,0.05589017,58022.0,58021.0,1.234457]
[1720797674656,0.05589017,58022.0,58021.0,0.545053]
[1720797674857,0.226355,58022.0,58021.0,0.545053]
[1720797675238,0.226355,58022.0,58021.0,0.665053]
[1720797675437,0.14899222,58022.0,58021.0,1.009755]
[1720797675687,0.05589017,58022.0,58021.0,1.009755]
[1720797675858,0.05589017,58022.0,58021.0,1.074955]
[1720797676127,0.05589017,58022.0,58021.0,1.419657]
[1720797676303,0.05580749,58022.0,58021.0,1.419657]
[1720797676505,0.001,58022.0,58021.0,1.419657]
[1720797676910,0.0558639,58022.0,58021.0,1.419657]
[1720797677253,0.05585801,58022.0,58021.0,1.419657]
[1720797677665,0.05485801,58022.0,58021.0,1.89077135]
[1720797677865,0.05485801,58022.0,58021.0,2.95109535]
[1720797678069,0.05585801,58022.0,58021.0,2.97909535]
[1720797678272,0.05585801,58022.0,58021.0,2.893981]
[1720797678476,0.001,58022.0,58021.0,2.879981]
[1720797678880,0.00107322,58039.0,58038.0,1.326103]
[1720797679087,0.00107322,58039.0,58038.0,1.206103]
[1720797679240,0.05619167,58041.0,58040.0,0.516883]
[1720797679446,0.0557473,58041.0,58040.0,0.861472]
[1720797679647,0.00083,58042.0,58041.0,0.86146]
[1720797679982,0.00083,58042.0,58041.0,0.99127994]
[1720797680159,0.05550361,58042.0,58041.0,1.21586394]
[1720797680355,0.05550361,58042.0,58041.0,1.33586394]
[1720797680747,0.05545773,58042.0,58041.0,1.33586394]
[1720797680954,0.05545773,58042.0,58041.0,1.22986394]
[1720797681157,0.05545773,58042.0,58041.0,1.33586394]
[1720797681362,0.05545773,58042.0,58041.0,1.34986394]
[1720797681618,0.05545773,58042.0,58041.0,1.36386394]
[1720797681933,0.05545773,58042.0,58041.0,1.22986394]
[1720797682135,0.05545773,58042.0,58041.0,0.87127994]
[1720797683319,0.05545773,58042.0,58041.0,0.88527994]
[1720797683525,0.05545773,58042.0,58041.0,0.89927994]
[1720797684341,0.00083,58042.0,58041.0,0.88527994]
[1720797684543,0.05474167,58042.0,58041.0,0.88527994]
[1720797684937,0.05474167,58042.0,58041.0,0.89927994]
[1720797684938,0.05474042,58042.0,58041.0,0.89927994]
[1720797686020,0.37232942,58042.0,58041.0,0.03781994]
[1720797686253,1.09871836,58042.0,58041.0,0.03781994]
[1720797686457,1.09871836,58042.0,58041.0,0.028]
[1720797686458,0.8093961,58042.0,58041.0,0.028]
[1720797686702,0.20004042,58042.0,58041.0,0.028]
[1720797686896,0.20004042,58042.0,58041.0,0.014]
[1720797687141,0.37232942,58042.0,58041.0,0.014]
[1720797687367,0.46461576,58042.0,58041.0,0.02079916]
[1720797687534,0.46568898,58042.0,58041.0,0.03279916]
[1720797687753,0.46568898,58042.0,58041.0,0.02179916]
[1720797688016,0.46512768,58042.0,58041.0,0.02179916]
[1720797688184,0.89482003,58042.0,58041.0,0.03279916]
[1720797688575,1.23939803,58042.0,58041.0,0.03279916]
[1720797688830,1.23939803,58042.0,58041.0,0.023]
[1720797688831,1.84505784,58042.0,58041.0,0.023]
[1720797689177,2.76276395,58042.0,58041.0,0.023]
[1720797689349,2.63421384,58042.0,58041.0,0.023]
[1720797689551,2.83421384,58042.0,58041.0,0.023]
[1720797689966,2.83421384,58042.0,58023.0,0.4664]
[1720797689967,0.172339,58025.0,58023.0,0.4664]
[1720797690109,0.172339,58025.0,58022.0,0.172347]
[1720797690110,0.0541805,58024.0,58022.0,0.172347]
[1720797691238,0.172339,58025.0,58022.0,0.172347]
[1720797691440,0.05522693,58024.0,58023.0,0.172345]
[1720797691641,0.05522693,58024.0,58023.0,1.206415]
[1720797691857,0.05415371,58024.0,58023.0,1.392115]
[1720797692062,0.17339222,58032.0,58029.0,0.172327]
[1720797692284,0.14667616,58031.0,58029.0,0.172327]
[1720797692486,0.14774938,58030.0,58029.0,0.172327]
[1720797692864,0.14667616,58030.0,58029.0,0.172327]
[1720797694102,0.14667616,58030.0,58029.0,0.171327]
[1720797694253,0.14667616,58030.0,58029.0,0.8704493]
[1720797694469,0.17338522,58034.0,58031.0,0.17232]
[1720797694669,0.14650479,58033.0,58031.0,0.17232]
[1720797695057,0.00107322,58032.0,58031.0,0.17232]
[1720797695222,0.14757801,58032.0,58031.0,0.861606]
[1720797695666,0.14650479,58032.0,58031.0,0.861606]
[1720797695858,0.00107322,58037.0,58035.0,0.172309]
[1720797696097,0.14598573,58036.0,58033.0,0.344625]
[1720797696316,0.17336622,58041.0,58037.0,0.172301]
[1720797696522,0.14597022,58040.0,58038.0,0.172299]
[1720797696726,0.14704344,58039.0,58037.0,0.172303]
[1720797696875,0.14704344,58039.0,58038.0,0.1723]
[1720797696876,0.00107322,58039.0,58038.0,0.1723]
[1720797697075,0.05339642,58039.0,58038.0,0.1713]
[1720797697406,0.09178203,58039.0,58038.0,0.860502]
[1720797697605,0.00083,58042.0,58040.0,0.172294]
[1720797697822,0.14560248,58041.0,58040.0,0.172294]
[1720797698160,0.14560248,58041.0,58038.0,0.013]
[1720797698363,0.516892,58039.0,58038.0,0.013]
[1720797698561,0.516892,58039.0,58028.0,0.0611]
[1720797698562,0.0757,58035.0,58033.0,0.172314]
[1720797698940,0.0757,58035.0,58028.0,0.17233]
[1720797698941,0.29621683,58034.0,58028.0,0.17233]
[1720797699165,0.172322,58031.0,58028.0,0.17233]
[1720797699378,0.17311125,58030.0,58029.0,0.172327]
[1720797699577,0.14560248,58030.0,58029.0,0.516982]
[1720797699993,0.14560248,58030.0,58029.0,0.861637]
[1720797700360,0.14560248,58030.0,58029.0,1.206292]
[1720797700562,0.05361482,58030.0,58029.0,1.220292]
[1720797700764,0.172304,58037.0,58034.0,0.172311]
[1720797700765,0.05505702,58036.0,58034.0,0.172311]
[1720797700968,0.14632773,58035.0,58034.0,0.172311]
[1720797701164,0.14632773,58035.0,58033.0,0.34463]
[1720797701165,0.14632773,58035.0,58033.0,0.516943]
[1720797701515,0.172304,58037.0,58033.0,0.516943]
[1720797701516,0.14740095,58034.0,58033.0,0.516943]
[1720797701626,0.14740095,58034.0,58033.0,0.172313]
[1720797701828,0.14632773,58034.0,58033.0,0.516944]
[1720797702050,0.14585621,58034.0,58033.0,0.516946]
[1720797702252,0.09211174,58034.0,58033.0,0.592446]
[1720797702473,0.09211174,58034.0,58033.0,0.937077]
[1720797703246,0.09211174,58034.0,58033.0,0.951077]
[1720797703644,0.09211174,58034.0,58033.0,0.875577]
[1720797703874,0.09211174,58034.0,58033.0,0.861577]
[1720797704015,0.09211174,58034.0,58033.0,1.340208]
[1720797704016,0.05374171,58034.0,58033.0,1.340208]
[1720797704214,0.05374171,58034.0,58033.0,1.326208]
[1720797704457,0.0515165,58040.0,58039.0,0.172297]
[1720797704675,0.05342411,58040.0,58039.0,0.172297]
[1720797704875,0.14522834,58040.0,58039.0,0.172297]
[1720797705252,0.22250309,58040.0,58039.0,0.172297]
[1720797705432,0.14522834,58040.0,58039.0,0.516892]
[1720797705634,0.19678152,58040.0,58039.0,0.516892]
[1720797705892,0.19678152,58040.0,58039.0,0.526892]
[1720797706198,0.14522834,58040.0,58039.0,0.182297]
[1720797706551,0.22250309,58040.0,58039.0,0.01]
[1720797706748,0.22221889,58040.0,58039.0,0.02]
[1720797706949,0.39558611,58040.0,58039.0,0.02]
[1720797707391,0.39451289,58040.0,58039.0,0.02]
[1720797707605,0.22221889,58040.0,58039.0,0.02]
[1720797707818,0.22219852,58040.0,58039.0,0.192297]
[1720797707988,0.14486222,58040.0,58039.0,0.192297]
[1720797708471,0.24797729,58040.0,58039.0,0.192297]
[1720797708675,0.24797729,58040.0,58039.0,0.192397]
[1720797708988,0.24905051,58040.0,58039.0,0.192397]
[1720797709191,0.24797729,58040.0,58039.0,0.192397]
[1720797709391,0.14486222,58040.0,58039.0,0.54788804]
[1720797709551,0.24797729,58040.0,58039.0,0.54788804]
[1720797710588,0.24797729,58040.0,58039.0,0.20329304]
[1720797710857,0.14486222,58040.0,58039.0,0.20329304]
[1720797711155,0.12889383,58041.0,58039.0,0.20329304]
[1720797711373,0.24876251,58040.0,58039.0,0.20329304]
[1720797711554,0.14559894,58040.0,58039.0,0.20329304]
[1720797711997,0.14559894,58040.0,58039.0,0.19329304]
[1720797712173,0.14559894,58040.0,58039.0,0.18329304]
[1720797712371,0.14559894,58040.0,58039.0,0.02899604]
[1720797712372,0.40319132,58040.0,58039.0,0.02899604]
[1720797712572,0.53208515,58040.0,58039.0,0.02899604]
[1720797712778,0.53208515,58040.0,58039.0,0.01999604]
[1720797713014,0.35979115,58040.0,58039.0,0.01999604]
[1720797713162,0.23089732,58040.0,58039.0,0.02999604]
[1720797714013,0.40319132,58040.0,58039.0,0.02999604]
[1720797714213,0.87667415,58040.0,58039.0,0.02099604]
[1720797714411,0.74603012,58040.0,58039.0,0.0101]
[1720797714650,0.74603012,58040.0,58039.0,0.03099729]
[1720797714850,0.516883,58040.0,58039.0,0.0201]
[1720797715039,0.66012981,58040.0,58039.0,0.03099729]
[1720797716786,0.66120303,58040.0,58039.0,0.03099729]
[1720797716957,0.66051155,58040.0,58039.0,0.0201]
[1720797717485,0.81517652,58040.0,58039.0,0.0201]
[1720797717956,0.81532331,58040.0,58039.0,0.0201]
[1720797718153,2.25922534,58040.0,58039.0,0.0201]
[1720797718375,2.78668756,58040.0,58039.0,0.0201]
[1720797718553,3.9511098,58040.0,58039.0,0.0201]
[1720797718750,3.9511098,58040.0,58019.0,0.51068611]
[1720797718751,0.99837,58020.0,58019.0,0.51068611]
[1720797718953,1.26214534,58020.0,58019.0,0.51068611]
[1720797719182,1.26214534,58020.0,58005.0,0.406497]
[1720797719183,0.172385,58010.0,58005.0,0.406497]
[1720797719368,0.172385,58010.0,58006.0,0.344789]
[1720797719369,0.2469029,58009.0,58006.0,0.344789]
[1720797719586,0.22112224,58008.0,58006.0,0.344789]
[1720797719782,0.10312756,58009.0,58008.0,0.172387]
[1720797719900,0.24688021,58009.0,58008.0,0.172387]
[1720797720319,0.14385265,58009.0,58008.0,0.172387]
[1720797720520,0.2727621,58009.0,58008.0,0.172387]
[1720797720719,0.172378,58012.0,58008.0,0.172387]
[1720797720975,0.27274105,58011.0,58008.0,0.172387]
[1720797721119,0.27274105,58011.0,58005.0,0.0617]
[1720797721120,0.14385931,58010.0,58005.0,0.0617]
[1720797721320,0.14385931,58010.0,58001.0,0.000913]
[1720797721321,0.517222,58002.0,58001.0,0.000913]
[1720797721522,1.13466175,58002.0,58001.0,0.000913]
[1720797721749,1.00579631,58002.0,58001.0,0.000913]
[1720797721958,0.66088131,58002.0,58001.0,0.000913]
[1720797722155,0.78952095,58002.0,58001.0,0.000913]
[1720797722633,1.00559631,58002.0,58001.0,0.000913]
[1720797722991,1.00659631,58002.0,58001.0,0.005913]
[1720797723373,1.00625843,58002.0,58001.0,0.005913]
[1720797723775,0.862737,58002.0,58001.0,0.005913]
[1720797723950,1.00622595,58002.0,58001.0,0.005913]
[1720797724527,1.00722595,58002.0,58001.0,0.005913]
[1720797724857,1.00622595,58002.0,58001.0,0.000913]
[1720797725050,1.0566012,58002.0,58001.0,0.000913]
[1720797725276,1.00622595,58002.0,58001.0,0.004913]
[1720797725480,1.51099899,58002.0,58001.0,0.005013]
[1720797725678,1.51099899,58002.0,58001.0,0.001013]
[1720797725679,1.48651004,58002.0,58001.0,0.001013]
[1720797725900,1.47042179,58002.0,58001.0,0.001013]
[1720797726642,1.47065582,58002.0,58001.0,0.001013]
[1720797727248,1.05715901,58002.0,58001.0,0.001013]
[1720797727444,1.00584082,58002.0,58001.0,0.001013]
[1720797727645,1.35065582,58002.0,58001.0,0.001013]
[1720797727932,1.42967347,58002.0,58001.0,0.001013]
[1720797728085,1.25943607,58002.0,58001.0,0.001013]
[1720797728287,0.91462107,58002.0,58001.0,0.001013]
[1720797728691,1.25943607,58002.0,58001.0,0.001013]
[1720797729111,0.91462107,58002.0,58001.0,0.001013]
[1720797729315,0.91462107,58002.0,58001.0,0.518244]
[1720797729316,0.05288407,58002.0,58001.0,0.518244]
[1720797729678,0.05288407,58002.0,58001.0,0.24017497]
[1720797729856,0.172399,58005.0,58002.0,0.172406]
[1720797730054,0.01041534,58011.0,58001.0,0.00972057]
[1720797730055,0.172405,58003.0,58001.0,0.00972057]
[1720797730197,0.05172418,58002.0,58001.0,0.001013]
[1720797730397,0.22413118,58002.0,58001.0,0.001013]
[1720797730600,0.56894618,58002.0,58001.0,0.001013]
[1720797730847,0.95261452,58002.0,58001.0,0.001013]
[1720797731199,1.49612952,58002.0,58001.0,0.001013]
[1720797731445,1.55692952,58002.0,58001.0,0.001013]
[1720797731622,1.43692952,58002.0,58001.0,0.001013]
[1720797731820,1.25857618,58002.0,58001.0,0.001013]
[1720797732065,0.91376118,58002.0,58001.0,0.001013]
[1720797732420,1.25857618,58002.0,58001.0,0.001013]
[1720797732673,0.91376118,58002.0,58001.0,0.001013]
[1720797732921,0.56894618,58002.0,58001.0,0.001013]
[1720797733153,0.05172418,58002.0,58001.0,0.001013]
[1720797733385,0.05189343,58002.0,58001.0,0.001013]
[1720797733577,0.172407,58002.0,58001.0,0.001013]
[1720797733713,0.22429996,58002.0,58001.0,0.001013]
[1720797733915,0.56911496,58002.0,58001.0,0.001013]
[1720797734121,1.36213686,58002.0,58001.0,0.001013]
[1720797734461,1.37874496,58002.0,58001.0,0.001013]
[1720797734669,1.25874496,58002.0,58001.0,0.001013]
[1720797734822,0.91392996,58002.0,58001.0,0.001013]
[1720797736576,0.91337328,58002.0,58001.0,0.001013]
[1720797737388,0.22374328,58002.0,58001.0,0.001013]
[1720797737629,0.05133628,58002.0,58001.0,0.001013]
[1720797737826,0.05133628,58002.0,58001.0,0.18213478]
[1720797738363,0.05133628,58003.0,58001.0,0.18213478]
[1720797738557,0.0608,58008.0,58001.0,0.69936178]
[1720797738558,0.05273234,58002.0,58001.0,0.69936178]
[1720797738905,0.05273199,58002.0,58001.0,0.00972478]
[1720797739107,0.172399,58005.0,58002.0,0.172407]
[1720797739313,0.05298404,58004.0,58003.0,0.517213]
[1720797739516,0.05298717,58004.0,58003.0,0.00871513]
[1720797739693,0.344749,58014.0,58004.0,0.344803]
[1720797739892,0.172387,58009.0,58006.0,0.172394]
[1720797740098,0.05299044,58008.0,58006.0,0.172394]
[1720797740294,0.172384,58010.0,58007.0,0.2636058]
[1720797740495,0.17239,58008.0,58007.0,0.0912138]
[1720797740699,0.05252017,58008.0,58007.0,0.2636058]
[1720797740952,0.344734,58016.0,58013.0,0.172374]
[1720797740953,0.05251775,58015.0,58013.0,0.172374]
[1720797741206,0.05193891,58014.0,58013.0,0.172374]
[1720797741414,0.05193891,58015.0,58014.0,0.00870568]
[1720797741617,0.35503444,58020.0,58016.0,0.172364]
[1720797741618,0.172357,58019.0,58016.0,0.172364]
[1720797741819,0.0663,58024.0,58017.0,0.344722]
[1720797742028,0.0801,58026.0,58017.0,0.344722]
[1720797742029,0.43295841,58036.0,58017.0,0.344722]
[1720797742030,0.05192975,58023.0,58022.0,0.517044]
[1720797742233,0.05192975,58023.0,58022.0,0.172348]
[1720797742445,0.05192975,58023.0,58022.0,0.18105102]
[1720797742848,0.05192975,58023.0,58022.0,0.35339802]
[1720797743053,0.05192975,58024.0,58022.0,0.00870302]
[1720797743257,0.20982986,58033.0,58022.0,0.00870302]
[1720797743258,0.05190662,58026.0,58025.0,0.344679]
[1720797743461,0.172331,58028.0,58025.0,0.0646]
[1720797743666,0.172331,58028.0,58025.0,0.07328948]
[1720797743667,0.05191022,58027.0,58025.0,0.07328948]
[1720797743870,0.05191022,58027.0,58026.0,0.517009]
[1720797744064,0.344644,58031.0,58026.0,0.344673]
[1720797744315,0.517,58027.0,58026.0,0.00868914]
[1720797744520,0.56891022,58027.0,58026.0,0.00868914]
[1720797744672,0.22424322,58027.0,58024.0,0.172341]
[1720797744886,0.05191022,58026.0,58024.0,0.172341]
[1720797745061,0.05191022,58026.0,58025.0,0.00868948]
[1720797745475,0.0509852,58026.0,58025.0,0.00868948]
[1720797745672,0.172351,58021.0,58018.0,0.250659]
[1720797745877,0.0509852,58020.0,58018.0,0.250659]
[1720797746058,0.0509852,58020.0,58019.0,0.517071]
[1720797746256,0.25745635,58024.0,58020.0,0.172351]
[1720797746508,0.22341951,58023.0,58019.0,0.172356]
[1720797746657,0.05107251,58022.0,58019.0,0.172356]
[1720797747198,0.22342051,58022.0,58019.0,0.172356]
[1720797747414,0.05107251,58021.0,58019.0,0.172356]
[1720797747860,0.05107251,58021.0,58020.0,0.172354]
[1720797748143,0.05107251,58022.0,58020.0,0.172354]
[1720797748354,0.40998175,58026.0,58020.0,0.517062]
[1720797748355,0.05107251,58021.0,58020.0,0.517062]
[1720797748592,0.172341,58025.0,58021.0,0.172349]
[1720797748797,0.05113057,58024.0,58023.0,0.172345]
[1720797749020,0.172327,58029.0,58025.0,0.172336]
[1720797749222,0.31381872,58028.0,58025.0,0.172336]
[1720797749422,0.14148808,58027.0,58025.0,0.172336]
[1720797750201,0.31382308,58027.0,58022.0,0.344691]
[1720797750429,0.14148808,58026.0,58024.0,0.17234]
[1720797751387,0.14148808,58026.0,58025.0,0.249339]
[1720797751646,0.01020768,58035.0,58026.0,0.0663]
[1720797751821,0.14228897,58034.0,58031.0,0.172319]
[1720797752048,0.14228897,58034.0,58030.0,0.172323]
[1720797752049,0.31460297,58034.0,58030.0,0.172323]
[1720797752268,0.14228897,58033.0,58028.0,0.34466]
[1720797752448,0.0115782,58041.0,58034.0,0.172311]
[1720797752449,0.172301,58038.0,58034.0,0.172311]
[1720797752686,0.05178572,58037.0,58035.0,0.172309]
[1720797752870,0.05178481,58036.0,58034.0,0.172311]
[1720797753084,0.05178481,58036.0,58033.0,0.172314]
[1720797753085,0.22409181,58036.0,58033.0,0.172314]
[1720797753270,0.05178481,58035.0,58034.0,0.516937]
[1720797753520,0.05156724,58035.0,58034.0,0.861562]
[1720797753709,0.05156536,58041.0,58036.0,0.344608]
[1720797753903,0.00083,58042.0,58041.0,0.516876]
[1720797754332,0.00083,58042.0,58041.0,0.52552678]
[1720797754333,0.05239291,58042.0,58041.0,0.52552678]
[1720797754535,0.05239291,58042.0,58041.0,0.87011078]
[1720797755556,0.05239291,58042.0,58041.0,0.99011078]
[1720797755854,0.05239291,58042.0,58041.0,1.33469478]
[1720797756020,0.00083,58042.0,58041.0,1.47909478]
[1720797756379,0.00083,58042.0,58041.0,1.82367878]
[1720797761700,0.00083,58042.0,58041.0,1.47909478]
[1720797765324,0.00083,58042.0,58041.0,1.35909478]
[1720797765642,0.00083,58042.0,58041.0,1.47909478]
[1720797766015,0.00083,58042.0,58041.0,1.01451078]
[1720797766921,0.00083,58042.0,58041.0,1.47909478]
[1720797777433,0.00083,58042.0,58041.0,1.82367878]
[1720797777604,0.00083,58042.0,58041.0,1.47909478]
[1720797778533,0.00083,58042.0,58041.0,1.82367878]
[1720797779793,0.05135671,58042.0,58041.0,1.82367878]
[1720797780007,0.00083,58042.0,58041.0,1.82367878]
[1720797780565,0.05147498,58042.0,58041.0,1.82367878]
[1720797780968,0.05147498,58042.0,58041.0,2.93584678]
[1720797780969,0.00083,58042.0,58041.0,2.93584678]
[1720797781171,0.00083,58042.0,58041.0,3.11764678]
[1720797781329,0.00828,58061.0,58045.0,0.0784]
[1720797781330,0.172239,58059.0,58045.0,0.0784]
[1720797781532,0.06267322,58054.0,58053.0,0.172254]
[1720797781751,0.1126737,58054.0,58053.0,0.172254]
[1720797781949,0.05108319,58054.0,58053.0,0.86987628]
[1720797782148,0.05108319,58054.0,58053.0,0.52536628]
[1720797782149,0.08854406,58054.0,58053.0,0.52536628]
[1720797782350,0.0608,58057.0,58056.0,0.516741]
[1720797782787,0.0608,58057.0,58056.0,0.18084428]
[1720797783218,0.19937742,58057.0,58056.0,0.18084428]